fUSD/lending_fUSD_20250427
["ID","MTS","AMOUNT","RATE_DAILY","PERIOD"]
[359171393,1745770238561,-480.0,0.0001996,2]
[359171394,1745770238570,-480.0,0.0001996,2]
[359171395,1745770238579,-510.42783081,0.0001996,2]
[359171396,1745770238590,-595.2,0.0001996,2]
[359171397,1745770238599,-480.0,0.0001996,2]
[359171398,1745770238610,-356.74852918,0.0001996,2]
[359171399,1745770238621,-480.0,0.0001996,2]
[359171400,1745770238631,-266.07677129,0.0001996,2]
[359171401,1745770238641,-480.0,0.0001996,2]
[359171402,1745770238650,-217.64323295,0.0001996,2]
[359171403,1745770238660,-480.0,0.0001996,2]
[359171404,1745770238670,-505.54894061,0.0001996,2]
[359171405,1745770238679,-480.0,0.0001996,2]
[359171406,1745770238689,-480.0,0.0001996,2]
[359171407,1745770238699,-501.01693117,0.0001996,2]
[359171408,1745770238708,-500.0,0.0001996,2]
[359171409,1745770238717,-480.0,0.0001996,2]
[359171410,1745770238727,-527.43,0.0001996,2]
[359171411,1745770238736,-500.36,0.0001996,2]
[359171412,1745770238746,-503.45210543,0.0001996,2]
[359171413,1745770238755,-502.51961842,0.0001996,2]
[359171414,1745770238765,-500.0,0.0001996,2]
[359171415,1745770238774,-480.0,0.0001996,2]
[359171416,1745770238783,-503.42064864,0.0001996,2]
[359171417,1745770238792,-480.0,0.0001996,2]
[359171418,1745770238801,-502.50032003,0.0001996,2]
[359171419,1745770238810,-480.0,0.0001996,2]
[359171420,1745770238819,-505.60659401,0.0001996,2]
[359171421,1745770238828,-726.39,0.0001996,2]
[359171422,1745770238837,-480.0,0.0001996,2]
[359171423,1745770238846,-357.45409348,0.0001996,2]
[359171424,1745770238856,-480.0,0.0001996,2]
[359171425,1745770238865,-444.29681444,0.0001996,2]
[359171426,1745770238874,-609.09568792,0.0001996,2]
[359171427,1745770238883,-500.0,0.0001996,2]
[359171428,1745770238893,-501.3546035,0.0001996,2]
[359171429,1745770238903,-480.0,0.0001996,2]
[359171430,1745770238912,-480.0,0.0001996,2]
[359171431,1745770238921,-480.0,0.0001996,2]
[359171432,1745770238930,-480.0,0.0001996,2]
[359171433,1745770238940,-539.8,0.0001996,2]
[359171434,1745770238949,-480.0,0.0001996,2]
[359171435,1745770238959,-480.0,0.0001996,2]
[359171436,1745770238972,-480.0,0.0001996,2]
[359171437,1745770238981,-480.0,0.0001996,2]
[359171438,1745770238991,-227.3972569,0.0001996,2]
[359171439,1745770239000,-480.0,0.0001996,2]
[359171440,1745770239009,-480.0,0.0001996,2]
[359171441,1745770239019,-480.0,0.0001996,2]
[359171442,1745770239028,-500.0,0.0001996,2]
[359171443,1745770239038,-480.0,0.0001996,2]
[359171444,1745770239047,-500.0,0.0001996,2]
[359171445,1745770239056,-480.0,0.0001996,2]
[359171446,1745770239066,-480.0,0.0001996,2]
[359171447,1745770239075,-606.23361352,0.0001996,2]
[359171448,1745770239085,-480.0,0.0001996,2]
[359171449,1745770239096,-500.0,0.0001996,2]
[359171450,1745770239105,-500.0,0.0001996,2]
[359171451,1745770239115,-480.0,0.0001996,2]
[359171452,1745770239125,-480.0,0.0001996,2]
[359171453,1745770239135,-480.0,0.0001996,2]
[359171454,1745770239146,-480.0,0.0001996,2]
[359171455,1745770239158,-480.0,0.0001996,2]
[359171456,1745770239167,-480.0,0.0001996,2]
[359171457,1745770239179,-480.0,0.0001996,2]
[359171458,1745770239189,-480.0,0.0001996,2]
[359171459,1745770239199,-480.0,0.0001996,2]
[359171460,1745770239210,-1412.88,0.0001996,2]
[359171461,1745770239221,-480.0,0.0001996,2]
[359171462,1745770239231,-1764.57,0.0001996,2]
[359171463,1745770239241,-17562.11868928,0.0001996,2]
[359171464,1745770239252,-150.0,0.0001996,2]
[359171465,1745770239261,-150.0,0.0001996,2]
[359171466,1745770239271,-207.59451203,0.0001996,2]
[359171467,1745770239281,-150.0,0.0001996,2]
[359171468,1745770239290,-500.0,0.0001996,2]
[359171469,1745770239300,-150.0,0.00019961,2]
[359171470,1745770239309,-500.0,0.00019961,2]
[359171471,1745770239318,-489.818,0.00019963,2]
[359171472,1745770239327,-480.0,0.00019966,2]
[359171473,1745770239337,-480.0,0.00019966,2]
[359171474,1745770239347,-500.0,0.00019966,2]
[359171475,1745770239356,-480.0,0.00019966,2]
[359171476,1745770239366,-480.0,0.00019966,2]
[359171477,1745770239375,-480.0,0.00019966,2]
[359171478,1745770239385,-480.0,0.00019966,2]
[359171479,1745770239394,-480.0,0.00019966,2]
[359171480,1745770239403,-480.0,0.00019966,2]
[359171481,1745770239412,-480.0,0.00019966,2]
[359171482,1745770239421,-480.0,0.00019966,2]
[359171483,1745770239431,-604.55829584,0.00019966,2]
[359171484,1745770239441,-480.0,0.00019966,2]
[359171485,1745770239451,-480.0,0.00019966,2]
[359171486,1745770239460,-480.0,0.00019966,2]
[359171487,1745770239470,-480.0,0.00019966,2]
[359171488,1745770239481,-480.0,0.00019966,2]
[359171489,1745770239491,-576.84416145,0.00019966,2]
[359171490,1745770239500,-480.0,0.00019966,2]
[359171491,1745770239510,-480.0,0.00019966,2]
[359171492,1745770239521,-480.0,0.00019966,2]
[359171493,1745770239531,-480.0,0.00019966,2]
[359171494,1745770239545,-2573.1,0.00019966,2]
[359171495,1745770239555,-480.0,0.00019966,2]
[359171496,1745770239565,-480.0,0.00019966,2]
[359171497,1745770239575,-480.0,0.00019966,2]
[359171498,1745770239586,-480.0,0.00019966,2]
[359171499,1745770239596,-935.46,0.00019966,2]
[359171500,1745770239606,-480.0,0.00019966,2]
[359171501,1745770239617,-480.0,0.00019966,2]
[359171502,1745770239627,-480.0,0.00019966,2]
[359171503,1745770239637,-480.0,0.00019966,2]
[359171504,1745770239647,-480.0,0.00019966,2]
[359171505,1745770239657,-594.517547,0.00019966,2]
[359171506,1745770239667,-602.30886439,0.00019966,2]
[359171507,1745770239676,-480.0,0.00019966,2]
[359171508,1745770239686,-1085.45,0.00019966,2]
[359171509,1745770239695,-480.0,0.00019966,2]
[359171510,1745770239705,-480.0,0.00019966,2]
[359171511,1745770239715,-388.41224928,0.00019966,2]
[359171512,1745770239724,-1081.93,0.00019966,2]
[359171513,1745770239734,-323.330641,0.00019966,2]
[359171514,1745770239744,-480.0,0.00019966,2]
[359171515,1745770239754,-523.92456692,0.00019966,2]
[359171516,1745770239763,-480.0,0.00019966,2]
[359171517,1745770239774,-627.95,0.00019966,2]
[359171518,1745770239783,-480.0,0.00019967,2]
[359171519,1745770239793,-480.0,0.00019967,2]
[359171520,1745770239802,-622.43371346,0.00019967,2]
[359171521,1745770239812,-500.0,0.00019967,2]
[359171522,1745770239821,-512.27876575,0.00019967,2]
[359171523,1745770239830,-480.0,0.00019967,2]
[359171524,1745770239840,-512.35886129,0.00019967,2]
[359171525,1745770239850,-480.0,0.00019967,2]
[359171526,1745770239859,-500.0,0.00019967,2]
[359171527,1745770239869,-389.62,0.00019967,2]
[359171528,1745770239879,-511.34978792,0.00019967,2]
[359171529,1745770239889,-480.0,0.00019967,2]
[359171530,1745770239899,-508.65153504,0.00019967,2]
[359171531,1745770239909,-513.91911817,0.00019967,2]
[359171532,1745770239918,-500.0,0.00019967,2]
[359171533,1745770239928,-246.16052161,0.00019967,2]
[359171534,1745770239937,-480.0,0.00019967,2]
[359171535,1745770239947,-518.03618114,0.00019967,2]
[359171536,1745770239956,-500.0,0.00019967,2]
[359171537,1745770239965,-480.0,0.00019967,2]
[359171538,1745770239974,-500.0,0.00019967,2]
[359171539,1745770239984,-513.4104861,0.00019967,2]
[359171540,1745770239993,-500.0,0.00019967,2]
[359171541,1745770240002,-500.0,0.00019967,2]
[359171542,1745770240011,-506.1525358,0.00019967,2]
[359171543,1745770240021,-509.71321432,0.00019967,2]
[359171544,1745770240030,-509.06054665,0.00019967,2]
[359171545,1745770240040,-500.0,0.00019967,2]
[359171546,1745770240049,-500.0,0.00019967,2]
[359171547,1745770240064,-500.0,0.00019967,2]
[359171549,1745770240078,-500.0,0.00019967,2]
[359171551,1745770240088,-512.79497515,0.00019967,2]
[359171552,1745770240097,-480.0,0.00019967,2]
[359171553,1745770240107,-509.17096782,0.00019967,2]
[359171554,1745770240117,-502.57350896,0.00019967,2]
[359171555,1745770240127,-526.50932093,0.00019967,2]
[359171556,1745770240136,-500.0,0.00019967,2]
[359171557,1745770240146,-510.71305143,0.00019967,2]
[359171558,1745770240156,-513.50579785,0.00019967,2]
[359171559,1745770240165,-515.9151616,0.00019967,2]
[359171560,1745770240175,-500.0,0.00019967,2]
[359171561,1745770240185,-514.24952983,0.00019967,2]
[359171562,1745770240195,-480.0,0.00019967,2]
[359171563,1745770240204,-500.0,0.00019967,2]
[359171564,1745770240214,-501.45043131,0.00019967,2]
[359171565,1745770240223,-480.0,0.00019967,2]
[359171566,1745770240232,-480.0,0.00019967,2]
[359171567,1745770240242,-500.0,0.00019967,2]
[359171568,1745770240252,-480.0,0.00019967,2]
[359171569,1745770240262,-480.0,0.00019967,2]
[359171570,1745770240271,-500.0,0.00019967,2]
[359171571,1745770240281,-500.0,0.00019967,2]
[359171572,1745770240291,-521.31723477,0.00019967,2]
[359171573,1745770240301,-500.0,0.00019967,2]
[359171574,1745770240310,-480.0,0.00019967,2]
[359171575,1745770240319,-480.0,0.00019967,2]
[359171576,1745770240329,-500.0,0.00019967,2]
[359171577,1745770240339,-229.91909312,0.00019967,2]
[359171578,1745770240349,-514.82,0.00019967,2]
[359171579,1745770240359,-500.0,0.00019967,2]
[359171580,1745770240367,-500.0,0.00019967,2]
[359171581,1745770240377,-514.34369561,0.00019967,2]
[359171582,1745770240386,-500.0,0.00019967,2]
[359171583,1745770240395,-480.0,0.00019967,2]
[359171584,1745770240405,-513.98376421,0.00019967,2]
[359171585,1745770240415,-480.0,0.00019967,2]
[359171586,1745770240424,-519.34902967,0.00019967,2]
[359171587,1745770240434,-523.28114712,0.00019967,2]
[359171588,1745770240443,-500.0,0.00019967,2]
[359171589,1745770240453,-591.42,0.00019967,2]
[359171590,1745770240463,-500.0,0.00019967,2]
[359171591,1745770240472,-500.0,0.00019967,2]
[359171592,1745770240482,-500.70154952,0.00019967,2]
[359171593,1745770240492,-500.0,0.00019967,2]
[359171594,1745770240502,-506.66664836,0.00019967,2]
[359171595,1745770240512,-520.82600255,0.00019967,2]
[359171596,1745770240522,-508.34980859,0.00019967,2]
[359171597,1745770240531,-508.66049769,0.00019967,2]
[359171598,1745770240543,-510.5880423,0.00019967,2]
[359171599,1745770240554,-480.0,0.00019967,2]
[359171600,1745770240564,-517.09397667,0.00019967,2]
[359171601,1745770240574,-510.77501448,0.00019967,2]
[359171602,1745770240584,-500.0,0.00019967,2]
[359171603,1745770240595,-480.0,0.00019967,2]
[359171604,1745770240605,-480.0,0.00019967,2]
[359171605,1745770240616,-500.0,0.00019967,2]
[359171606,1745770240626,-480.0,0.00019967,2]
[359171607,1745770240636,-500.0,0.00019967,2]
[359171608,1745770240646,-500.0,0.00019967,2]
[359171609,1745770240656,-480.0,0.00019967,2]
[359171610,1745770240666,-254.05988787,0.00019967,2]
[359171611,1745770240677,-510.35166996,0.00019967,2]
[359171613,1745770240687,-500.0,0.00019967,2]
[359171615,1745770240697,-511.88509734,0.00019967,2]
[359171616,1745770240707,-480.0,0.00019967,2]
[359171617,1745770240717,-518.17262288,0.00019967,2]
[359171618,1745770240726,-558.15425466,0.00019967,2]
[359171619,1745770240737,-500.0,0.00019967,2]
[359171620,1745770240747,-500.0,0.00019967,2]
[359171621,1745770240756,-512.02894098,0.00019967,2]
[359171622,1745770240766,-506.07903592,0.00019967,2]
[359171623,1745770240776,-480.0,0.00019967,2]
[359171624,1745770240786,-512.21772843,0.00019967,2]
[359171625,1745770240796,-500.0,0.00019967,2]
[359171626,1745770240806,-500.0,0.00019967,2]
[359171627,1745770240816,-480.0,0.00019967,2]
[359171628,1745770240826,-480.0,0.00019967,2]
[359171629,1745770240836,-480.0,0.00019967,2]
[359171630,1745770240847,-500.0,0.00019967,2]
[359171631,1745770240857,-500.0,0.00019967,2]
[359171632,1745770240867,-480.0,0.00019967,2]
[359171633,1745770240877,-500.0,0.00019967,2]
[359171634,1745770240887,-518.50438675,0.00019967,2]
[359171635,1745770240897,-525.59181614,0.00019967,2]
[359171636,1745770240907,-508.05389472,0.00019967,2]
[359171637,1745770240917,-429.20225349,0.00019967,2]
[359171638,1745770240926,-480.0,0.00019967,2]
[359171639,1745770240936,-480.0,0.00019967,2]
[359171640,1745770240946,-500.0,0.00019967,2]
[359171641,1745770240955,-480.0,0.00019967,2]
[359171642,1745770240965,-480.0,0.00019967,2]
[359171643,1745770240974,-509.25606412,0.00019967,2]
[359171644,1745770240984,-515.64124939,0.00019967,2]
[359171645,1745770240994,-500.0,0.00019967,2]
[359171646,1745770241005,-508.2247105,0.00019967,2]
[359171647,1745770241018,-500.0,0.00019967,2]
[359171648,1745770241030,-507.81440199,0.00019967,2]
[359171649,1745770241039,-500.0,0.00019967,2]
[359171650,1745770241051,-500.0,0.00019967,2]
[359171651,1745770241061,-503.51016432,0.00019967,2]
[359171652,1745770241072,-611.07184962,0.00019967,2]
[359171653,1745770241084,-489.25647391,0.00019967,2]
[359171654,1745770241095,-500.0,0.00019967,2]
[359171655,1745770241105,-500.0,0.00019967,2]
[359171656,1745770241115,-480.0,0.00019967,2]
[359171657,1745770241124,-480.0,0.00019967,2]
[359171658,1745770241134,-480.0,0.00019967,2]
[359171659,1745770241143,-522.53096711,0.00019967,2]
[359171660,1745770241153,-500.0,0.00019967,2]
[359171661,1745770241162,-504.80979826,0.00019967,2]
[359171662,1745770241172,-480.0,0.00019967,2]
[359171663,1745770241181,-621.68,0.00019967,2]
[359171664,1745770241190,-508.23506225,0.00019967,2]
[359171665,1745770241200,-500.0,0.00019967,2]
[359171666,1745770241209,-480.0,0.00019967,2]
[359171667,1745770241219,-507.02006206,0.00019967,2]
[359171668,1745770241229,-512.78721608,0.00019967,2]
[359171669,1745770241238,-515.29222645,0.00019967,2]
[359171670,1745770241247,-501.10673211,0.00019967,2]
[359171671,1745770241257,-480.0,0.00019967,2]
[359171672,1745770241266,-500.0,0.00019967,2]
[359171673,1745770241275,-532.45,0.00019967,2]
[359171674,1745770241285,-510.46340478,0.00019967,2]
[359171675,1745770241301,-480.0,0.00019967,2]
[359171676,1745770241311,-480.0,0.00019967,2]
[359171677,1745770241321,-500.0,0.00019967,2]
[359171678,1745770241330,-500.0,0.00019967,2]
[359171679,1745770241344,-1020.63689416,0.00019967,2]
[359171680,1745770241354,-480.0,0.00019967,2]
[359171681,1745770241363,-500.0,0.00019967,2]
[359171682,1745770241373,-500.0,0.00019967,2]
[359171683,1745770241382,-480.0,0.00019967,2]
[359171684,1745770241391,-540.66858809,0.00019967,2]
[359171685,1745770241401,-500.0,0.00019967,2]
[359171686,1745770241411,-520.38854166,0.00019967,2]
[359171687,1745770241421,-480.0,0.00019967,2]
[359171688,1745770241430,-613.02711346,0.00019967,2]
[359171689,1745770241440,-512.21880561,0.00019967,2]
[359171690,1745770241450,-500.0,0.00019967,2]
[359171691,1745770241460,-506.2199628,0.00019967,2]
[359171692,1745770241470,-480.0,0.00019967,2]
[359171693,1745770241480,-536.11676024,0.00019967,2]
[359171694,1745770241489,-500.0,0.00019967,2]
[359171695,1745770241500,-513.38235498,0.00019967,2]
[359171696,1745770241509,-480.0,0.00019967,2]
[359171697,1745770241519,-500.0,0.00019967,2]
[359171698,1745770241529,-500.0,0.00019967,2]
[359171699,1745770241540,-500.0,0.00019967,2]
[359171700,1745770241552,-500.0,0.00019967,2]
[359171701,1745770241561,-596.41,0.00019967,2]
[359171702,1745770241571,-508.8734629,0.00019967,2]
[359171703,1745770241582,-507.49471771,0.00019967,2]
[359171704,1745770241592,-480.0,0.00019967,2]
[359171705,1745770241604,-512.11905232,0.00019967,2]
[359171706,1745770241614,-628.9,0.00019967,2]
[359171707,1745770241625,-480.0,0.00019967,2]
[359171708,1745770241635,-500.0,0.00019967,2]
[359171709,1745770241645,-480.0,0.00019967,2]
[359171710,1745770241655,-500.0,0.00019967,2]
[359171711,1745770241665,-480.0,0.00019967,2]
[359171712,1745770241675,-480.0,0.00019967,2]
[359171713,1745770241685,-514.02995407,0.00019967,2]
[359171714,1745770241695,-500.0,0.00019967,2]
[359171715,1745770241705,-480.0,0.00019967,2]
[359171716,1745770241715,-500.0,0.00019967,2]
[359171717,1745770241725,-370.520001,0.00019967,2]
[359171718,1745770241735,-500.0,0.00019967,2]
[359171719,1745770241745,-513.58956295,0.00019967,2]
[359171720,1745770241755,-507.92101635,0.00019967,2]
[359171721,1745770241766,-500.0,0.00019967,2]
[359171722,1745770241777,-515.56557265,0.00019967,2]
[359171723,1745770241789,-508.67540738,0.00019967,2]
[359171724,1745770241799,-500.0,0.00019967,2]
[359171725,1745770241809,-480.0,0.00019967,2]
[359171726,1745770241819,-500.0,0.00019967,2]
[359171727,1745770241830,-500.0,0.00019967,2]
[359171728,1745770241843,-480.0,0.00019967,2]
[359171729,1745770241854,-503.46034095,0.00019967,2]
[359171730,1745770241865,-500.0,0.00019967,2]
[359171731,1745770241875,-480.0,0.00019967,2]
[359171732,1745770241887,-1490.01,0.00019967,2]
[359171733,1745770241896,-480.0,0.00019967,2]
[359171734,1745770241906,-500.0,0.00019967,2]
[359171735,1745770241918,-500.0,0.00019967,2]
[359171736,1745770241930,-500.0,0.00019967,2]
[359171737,1745770241940,-500.0,0.00019967,2]
[359171738,1745770241950,-500.0,0.00019967,2]
[359171739,1745770241960,-500.0,0.00019967,2]
[359171740,1745770241970,-500.0,0.00019967,2]
[359171741,1745770241981,-500.0,0.00019967,2]
[359171742,1745770241990,-480.0,0.00019967,2]
[359171743,1745770242000,-597.37020367,0.00019967,2]
[359171744,1745770242010,-1000.0,0.00019967,2]
[359171745,1745770242021,-511.7172596,0.00019967,2]
[359171746,1745770242031,-511.21299389,0.00019967,2]
[359171747,1745770242040,-500.0,0.00019967,2]
[359171748,1745770242050,-515.88026255,0.00019967,2]
[359171749,1745770242060,-524.63034693,0.00019967,2]
[359171750,1745770242070,-480.0,0.00019967,2]
[359171751,1745770242081,-480.0,0.00019967,2]
[359171752,1745770242091,-480.0,0.00019967,2]
[359171753,1745770242101,-514.29,0.00019967,2]
[359171754,1745770242111,-530.23624613,0.00019967,2]
[359171755,1745770242120,-480.0,0.00019967,2]
[359171756,1745770242130,-500.0,0.00019967,2]
[359171757,1745770242139,-199.28548724,0.00019967,2]
[359171758,1745770242149,-480.0,0.00019967,2]
[359171759,1745770242159,-480.0,0.00019967,2]
[359171760,1745770242168,-480.0,0.00019967,2]
[359171761,1745770242178,-500.0,0.00019967,2]
[359171762,1745770242188,-480.0,0.00019967,2]
[359171763,1745770242198,-500.0,0.00019967,2]
[359171764,1745770242209,-480.0,0.00019967,2]
[359171765,1745770242220,-1867.17,0.00019967,2]
[359171766,1745770242230,-500.0,0.00019967,2]
[359171767,1745770242240,-500.0,0.00019967,2]
[359171768,1745770242251,-508.91278633,0.00019967,2]
[359171769,1745770242261,-500.0,0.00019967,2]
[359171770,1745770242271,-513.43318,0.00019967,2]
[359171771,1745770242283,-480.0,0.00019967,2]
[359171772,1745770242294,-33173.83,0.00019967,2]
[359171773,1745770242306,-480.0,0.00019967,2]
[359171774,1745770242316,-480.0,0.00019967,2]
[359171775,1745770242327,-500.0,0.00019967,2]
[359171776,1745770242336,-480.0,0.00019967,2]
[359171777,1745770242347,-500.0,0.00019967,2]
[359171778,1745770242357,-500.0,0.00019967,2]
[359171779,1745770242367,-480.0,0.00019967,2]
[359171780,1745770242376,-480.0,0.00019967,2]
[359171781,1745770242385,-255.05643431,0.00019967,2]
[359171782,1745770242395,-480.0,0.00019967,2]
[359171783,1745770242404,-570.04,0.00019967,2]
[359171784,1745770242414,-480.0,0.00019967,2]
[359171785,1745770242423,-6154.8,0.00019967,2]
[359171786,1745770242436,-480.0,0.00019967,2]
[359171787,1745770242445,-485.93471246,0.00019967,2]
[359171788,1745770242455,-500.0,0.00019967,2]
[359171789,1745770242464,-2897.74,0.00019967,2]
[359171790,1745770242474,-480.0,0.00019967,2]
[359171791,1745770242483,-500.0,0.00019967,2]
[359171792,1745770242493,-480.0,0.00019967,2]
[359171793,1745770242503,-1084.05,0.00019967,2]
[359171794,1745770242514,-480.0,0.00019967,2]
[359171795,1745770242523,-500.0,0.00019967,2]
[359171796,1745770242533,-480.0,0.00019967,2]
[359171797,1745770242545,-480.0,0.00019967,2]
[359171798,1745770242556,-508.6,0.00019967,2]
[359171799,1745770242566,-480.0,0.00019967,2]
[359171800,1745770242576,-508.91170912,0.00019967,2]
[359171801,1745770242587,-480.0,0.00019967,2]
[359171802,1745770242597,-500.0,0.00019967,2]
[359171803,1745770242607,-480.0,0.00019967,2]
[359171804,1745770242618,-480.0,0.00019967,2]
[359171805,1745770242629,-480.0,0.00019967,2]
[359171806,1745770242641,-506.86278191,0.00019967,2]
[359171807,1745770242651,-500.0,0.00019967,2]
[359171808,1745770242661,-552.46,0.00019967,2]
[359171809,1745770242672,-504.38038834,0.00019967,2]
[359171810,1745770242683,-480.0,0.00019967,2]
[359171811,1745770242693,-520.83,0.00019967,2]
[359171821,1745770242919,-480.0,0.00019967,2]
[359171822,1745770242931,-710.73,0.00019967,2]
[359171823,1745770242942,-480.0,0.00019967,2]
[359171824,1745770242952,-480.0,0.00019967,2]
[359171825,1745770242962,-500.0,0.00019967,2]
[359171826,1745770242971,-480.0,0.00019967,2]
[359171827,1745770242981,-500.0,0.00019967,2]
[359171828,1745770242991,-500.0,0.00019967,2]
[359171829,1745770243001,-480.0,0.00019967,2]
[359171830,1745770243012,-500.0,0.00019967,2]
[359171831,1745770243022,-500.0,0.00019967,2]
[359171832,1745770243033,-500.0,0.00019967,2]
[359171833,1745770243043,-480.0,0.00019967,2]
[359171834,1745770243054,-480.0,0.00019967,2]
[359171835,1745770243064,-480.0,0.00019967,2]
[359171836,1745770243073,-480.0,0.00019967,2]
[359171837,1745770243083,-480.0,0.00019967,2]
[359171838,1745770243092,-500.0,0.00019967,2]
[359171839,1745770243101,-480.0,0.00019967,2]
[359171840,1745770243111,-480.0,0.00019967,2]
[359171841,1745770243120,-480.0,0.00019967,2]
[359171842,1745770243131,-480.0,0.00019967,2]
[359171843,1745770243141,-480.0,0.00019967,2]
[359171844,1745770243151,-500.0,0.00019967,2]
[359171845,1745770243160,-500.0,0.00019967,2]
[359171846,1745770243170,-589.84,0.00019967,2]
[359171847,1745770243180,-571.76,0.00019967,2]
[359171848,1745770243189,-500.0,0.00019967,2]
[359171849,1745770243199,-480.0,0.00019967,2]
[359171850,1745770243209,-576.34,0.00019967,2]
[359171851,1745770243219,-500.0,0.00019967,2]
[359171852,1745770243228,-517.87471849,0.00019967,2]
[359171853,1745770243238,-480.0,0.00019967,2]
[359171854,1745770243248,-500.0,0.00019967,2]
[359171855,1745770243257,-480.0,0.00019967,2]
[359171856,1745770243266,-500.0,0.00019967,2]
[359171857,1745770243276,-480.0,0.00019967,2]
[359171858,1745770243285,-480.0,0.00019967,2]
[359171859,1745770243295,-480.0,0.00019967,2]
[359171860,1745770243305,-480.0,0.00019967,2]
[359171863,1745770243314,-480.0,0.00019967,2]
[359171866,1745770243329,-480.0,0.00019967,2]
[359171869,1745770243338,-500.0,0.00019967,2]
[359171872,1745770243348,-480.0,0.00019967,2]
[359171875,1745770243357,-151.0,0.00019967,2]
[359171877,1745770243367,-480.0,0.00019967,2]
[359171879,1745770243376,-500.0,0.00019967,2]
[359171883,1745770243386,-480.0,0.00019967,2]
[359171885,1745770243395,-480.0,0.00019967,2]
[359171887,1745770243405,-480.0,0.00019967,2]
[359171889,1745770243414,-520.0,0.00019967,2]
[359171890,1745770243423,-500.0,0.00019967,2]
[359171892,1745770243432,-480.0,0.00019967,2]
[359171893,1745770243441,-480.0,0.00019967,2]
[359171894,1745770243451,-500.0,0.00019967,2]
[359171895,1745770243460,-480.0,0.00019967,2]
[359171896,1745770243470,-560.58,0.00019967,2]
[359171897,1745770243480,-151.0,0.00019967,2]
[359171898,1745770243490,-500.0,0.00019967,2]
[359171899,1745770243500,-480.0,0.00019967,2]
[359171900,1745770243510,-480.0,0.00019967,2]
[359171901,1745770243519,-480.0,0.00019967,2]
[359171902,1745770243529,-500.0,0.00019967,2]
[359171903,1745770243540,-560.13,0.00019967,2]
[359171904,1745770243552,-520.0,0.00019967,2]
[359171905,1745770243562,-480.0,0.00019967,2]
[359171906,1745770243571,-480.0,0.00019967,2]
[359171907,1745770243583,-825.63,0.00019967,2]
[359171908,1745770243593,-500.0,0.00019967,2]
[359171909,1745770243603,-480.0,0.00019967,2]
[359171910,1745770243612,-480.0,0.00019967,2]
[359171911,1745770243623,-480.0,0.00019967,2]
[359171912,1745770243634,-2259.01,0.00019967,2]
[359171913,1745770243644,-480.0,0.00019967,2]
[359171914,1745770243654,-500.0,0.00019967,2]
[359171915,1745770243664,-500.48024201,0.00019967,2]
[359171916,1745770243674,-382.47,0.00019967,2]
[359171917,1745770243684,-480.0,0.00019967,2]
[359171918,1745770243693,-480.0,0.00019967,2]
[359171919,1745770243703,-500.0,0.00019967,2]
[359171920,1745770243712,-100.47370144,0.00019967,2]
[359171921,1745770243751,-399.52629856,0.00019967,2]
[359171922,1745770243761,-1404.69370144,0.00019967,2]
[359171923,1745770243773,-1995.24,0.00019967,2]
[359171924,1745770243784,-2988.93860879,0.00019967,2]